[Event "Early-Titled-Tuesday-Blitz-July-09-2024"]
[Site "Chess.com"]
[Date "2024.07.09"]
[Round "4"]
[White "AwareIdea"]
[Black "RTchess367"]
[Result "1/2-1/2"]
[WhiteElo "2484"]
[BlackElo "2286"]
[TimeControl "180+1"]
[EndTime "8:41:33 PDT"]
[Termination "Game drawn - insufficient material"]

1. c4 {[%clk 0:02:58.1]} 1... e5 {[%clk 0:02:57.8]} 2. e3 {[%clk 0:02:57.3]}
2... d6 {[%clk 0:02:57.4]} 3. Nc3 {[%clk 0:02:56.6]} 3... f5 {[%clk 0:02:56.4]}
4. Nf3 {[%clk 0:02:53.8]} 4... Nf6 {[%clk 0:02:56.3]} 5. b3 {[%clk 0:02:53.7]}
5... Be7 {[%clk 0:02:56.3]} 6. Bb2 {[%clk 0:02:53.9]} 6... O-O {[%clk
0:02:56.7]} 7. Qc2 {[%clk 0:02:54.1]} 7... h6 {[%clk 0:02:46.3]} 8. Be2 {[%clk
0:02:50.5]} 8... Be6 {[%clk 0:02:46.2]} 9. d4 {[%clk 0:02:48.3]} 9... e4 {[%clk
0:02:45.4]} 10. Nh4 {[%clk 0:02:47.1]} 10... Qe8 {[%clk 0:02:37]} 11. d5 {[%clk
0:02:35.4]} 11... Bd7 {[%clk 0:02:17]} 12. g3 {[%clk 0:02:35.1]} 12... a5 {[%clk
0:02:14.1]} 13. Ng2 {[%clk 0:02:32.6]} 13... Na6 {[%clk 0:02:12]} 14. h4 {[%clk
0:02:25.4]} 14... Nb4 {[%clk 0:02:06.5]} 15. Qd2 {[%clk 0:02:24.7]} 15... Ng4
{[%clk 0:01:59.6]} 16. a3 {[%clk 0:02:17.6]} 16... Nd3+ {[%clk 0:01:50.5]} 17.
Bxd3 {[%clk 0:02:12.7]} 17... exd3 {[%clk 0:01:50.7]} 18. Qxd3 {[%clk
0:02:12.6]} 18... Ne5 {[%clk 0:01:49.3]} 19. Qc2 {[%clk 0:01:54.9]} 19... a4
{[%clk 0:01:45.7]} 20. Nf4 {[%clk 0:01:47.7]} 20... axb3 {[%clk 0:01:41.8]} 21.
Qxb3 {[%clk 0:01:48.6]} 21... Bf6 {[%clk 0:01:26.9]} 22. Kf1 {[%clk 0:01:26.5]}
22... Nf3 {[%clk 0:00:52]} 23. Kg2 {[%clk 0:01:15.4]} 23... Nd2 {[%clk
0:00:51.9]} 24. Qb4 {[%clk 0:00:49.9]} 24... Ne4 {[%clk 0:00:29.9]} 25. Nxe4
{[%clk 0:00:38.1]} 25... Qxe4+ {[%clk 0:00:30.8]} 26. f3 {[%clk 0:00:29.7]}
26... Qc2+ {[%clk 0:00:30.3]} 27. Kh3 {[%clk 0:00:24.3]} 27... Qxb2 {[%clk
0:00:30.2]} 28. Qxb2 {[%clk 0:00:17.4]} 28... Bxb2 {[%clk 0:00:31.1]} 29. Rab1
{[%clk 0:00:18.3]} 29... Bxa3 {[%clk 0:00:23.5]} 30. Rxb7 {[%clk 0:00:17.9]}
30... Bc5 {[%clk 0:00:19]} 31. Rxc7 {[%clk 0:00:16.8]} 31... Ba4 {[%clk
0:00:18.9]} 32. Ne6 {[%clk 0:00:13.2]} 32... Rf7 {[%clk 0:00:18.4]} 33. Rxf7
{[%clk 0:00:11.3]} 33... Kxf7 {[%clk 0:00:19.3]} 34. Nxc5 {[%clk 0:00:12.1]}
34... dxc5 {[%clk 0:00:19.5]} 35. Ra1 {[%clk 0:00:12.3]} 35... Ke7 {[%clk
0:00:14.6]} 36. g4 {[%clk 0:00:11.1]} 36... g6 {[%clk 0:00:14.5]} 37. Kg3 {[%clk
0:00:11.1]} 37... fxg4 {[%clk 0:00:13.3]} 38. fxg4 {[%clk 0:00:12]} 38... Kd6
{[%clk 0:00:13.6]} 39. g5 {[%clk 0:00:07.8]} 39... h5 {[%clk 0:00:13.6]} 40. Kf4
{[%clk 0:00:05.5]} 40... Bc6 {[%clk 0:00:10.4]} 41. Rb1 {[%clk 0:00:03.7]} 41...
Rf8+ {[%clk 0:00:09.5]} 42. Kg3 {[%clk 0:00:03.8]} 42... Bd7 {[%clk 0:00:07.2]}
43. Rb6+ {[%clk 0:00:04.1]} 43... Ke5 {[%clk 0:00:07.4]} 44. Rxg6 {[%clk
0:00:04.3]} 44... Bg4 {[%clk 0:00:07.3]} 45. Rc6 {[%clk 0:00:03.1]} 45... Rf3+
{[%clk 0:00:07]} 46. Kg2 {[%clk 0:00:03.7]} 46... Rxe3 {[%clk 0:00:07]} 47. Rxc5
{[%clk 0:00:04.2]} 47... Re2+ {[%clk 0:00:06.7]} 48. Kg3 {[%clk 0:00:03.9]}
48... Re3+ {[%clk 0:00:06.9]} 49. Kg2 {[%clk 0:00:04.2]} 49... Re2+ {[%clk
0:00:06.5]} 50. Kf1 {[%clk 0:00:04.8]} 50... Kf4 {[%clk 0:00:04.8]} 51. Rc7
{[%clk 0:00:03.5]} 51... Kg3 {[%clk 0:00:03.7]} 52. Rf7 {[%clk 0:00:02.4]} 52...
Ra2 {[%clk 0:00:03.6]} 53. Ke1 {[%clk 0:00:02]} 53... Ra1+ {[%clk 0:00:03.5]}
54. Kd2 {[%clk 0:00:02.5]} 54... Ra2+ {[%clk 0:00:03.5]} 55. Kc3 {[%clk
0:00:03.1]} 55... Kxh4 {[%clk 0:00:03.6]} 56. Kd4 {[%clk 0:00:03.5]} 56... Kxg5
{[%clk 0:00:03.6]} 57. Rg7+ {[%clk 0:00:03.7]} 57... Kf4 {[%clk 0:00:03.6]} 58.
d6 {[%clk 0:00:03.7]} 58... Rd2+ {[%clk 0:00:03.9]} 59. Kc5 {[%clk 0:00:04.2]}
59... h4 {[%clk 0:00:04.2]} 60. Rf7+ {[%clk 0:00:03.8]} 60... Kg3 {[%clk
0:00:04.3]} 61. Rg7 {[%clk 0:00:04.3]} 61... Kf3 {[%clk 0:00:04]} 62. Kc6 {[%clk
0:00:04.3]} 62... h3 {[%clk 0:00:04.2]} 63. Rf7+ {[%clk 0:00:03.8]} 63... Kg3
{[%clk 0:00:04.2]} 64. Rh7 {[%clk 0:00:04.2]} 64... h2 {[%clk 0:00:04.3]} 65. c5
{[%clk 0:00:04.5]} 65... Bf3+ {[%clk 0:00:03.6]} 66. Kc7 {[%clk 0:00:04.3]}
66... h1=Q {[%clk 0:00:03.8]} 67. Rxh1 {[%clk 0:00:04.3]} 67... Bxh1 {[%clk
0:00:04.7]} 68. d7 {[%clk 0:00:05.2]} 68... Bf3 {[%clk 0:00:03.9]} 69. d8=Q
{[%clk 0:00:04.9]} 69... Rxd8 {[%clk 0:00:02.9]} 70. Kxd8 {[%clk 0:00:05.8]}
70... Bg2 {[%clk 0:00:03.3]} 71. Kd7 {[%clk 0:00:06.1]} 71... Bf3 {[%clk
0:00:03.4]} 72. Kd6 {[%clk 0:00:06.2]} 72... Bg2 {[%clk 0:00:03.5]} 73. Ke5
{[%clk 0:00:07.1]} 73... Bf3 {[%clk 0:00:03.5]} 74. Kd4 {[%clk 0:00:08]} 74...
Bg2 {[%clk 0:00:03.9]} 75. Ke5 {[%clk 0:00:08.1]} 75... Kf3 {[%clk 0:00:03.9]}
76. Ke6 {[%clk 0:00:08.7]} 76... Ke2 {[%clk 0:00:04]} 77. Kd6 {[%clk 0:00:09.2]}
77... Kd3 {[%clk 0:00:04.5]} 78. c6 {[%clk 0:00:09.5]} 78... Bxc6 {[%clk
0:00:04]} 1/2-1/2

[Event "Early-Titled-Tuesday-Blitz-July-09-2024"]
[Site "Chess.com"]
[Date "2024.07.09"]
[Round "4"]
[White "VaglioSagan"]
[Black "Ditman2007"]
[Result "1/2-1/2"]
[WhiteElo "2510"]
[BlackElo "2709"]
[TimeControl "180+1"]
[EndTime "8:42:03 PDT"]
[Termination "Game drawn by repetition"]

1. d4 {[%clk 0:02:57.7]} 1... Nf6 {[%clk 0:02:41.6]} 2. c4 {[%clk 0:02:52.5]}
2... c5 {[%clk 0:02:41.3]} 3. d5 {[%clk 0:02:49.3]} 3... b5 {[%clk 0:02:40.1]}
4. a4 {[%clk 0:02:37.6]} 4... b4 {[%clk 0:02:34.4]} 5. b3 {[%clk 0:02:37.3]}
5... g6 {[%clk 0:02:34.5]} 6. Bb2 {[%clk 0:02:37.3]} 6... Bg7 {[%clk 0:02:35.2]}
7. e4 {[%clk 0:02:37]} 7... O-O {[%clk 0:02:35.8]} 8. Bd3 {[%clk 0:02:21.5]}
8... d6 {[%clk 0:02:34.3]} 9. Ne2 {[%clk 0:02:16.1]} 9... e5 {[%clk 0:02:34.4]}
10. dxe6 {[%clk 0:02:02.6]} 10... Bxe6 {[%clk 0:02:34.1]} 11. O-O {[%clk
0:02:02.5]} 11... Nc6 {[%clk 0:02:33.9]} 12. Qc2 {[%clk 0:01:35.6]} 12... Re8
{[%clk 0:02:27.7]} 13. Nd2 {[%clk 0:01:34]} 13... Qc7 {[%clk 0:02:24.8]} 14.
Rae1 {[%clk 0:01:30.5]} 14... Ne5 {[%clk 0:02:21]} 15. Nf4 {[%clk 0:01:23.2]}
15... Nfd7 {[%clk 0:02:12.3]} 16. Be2 {[%clk 0:01:05.5]} 16... Nb8 {[%clk
0:01:59.1]} 17. Nd5 {[%clk 0:01:01.4]} 17... Bxd5 {[%clk 0:01:59.1]} 18. exd5
{[%clk 0:01:00.9]} 18... h5 {[%clk 0:01:20.9]} 19. h3 {[%clk 0:00:58.6]} 19...
Ned7 {[%clk 0:01:18.6]} 20. Bxg7 {[%clk 0:00:58.2]} 20... Kxg7 {[%clk
0:01:19.5]} 21. Ne4 {[%clk 0:00:50.4]} 21... a5 {[%clk 0:00:48.4]} 22. f4 {[%clk
0:00:39.4]} 22... Ra6 {[%clk 0:00:44.1]} 23. f5 {[%clk 0:00:37.7]} 23... Re5
{[%clk 0:00:29.4]} 24. Bd3 {[%clk 0:00:20]} 24... Qd8 {[%clk 0:00:25.1]} 25. f6+
{[%clk 0:00:17.5]} 25... Kf8 {[%clk 0:00:22.6]} 26. Qd2 {[%clk 0:00:16.2]} 26...
Kg8 {[%clk 0:00:20.8]} 27. Re2 {[%clk 0:00:11.9]} 27... Qf8 {[%clk 0:00:17.3]}
28. Ref2 {[%clk 0:00:09.6]} 28... Ra7 {[%clk 0:00:16.7]} 29. Qf4 {[%clk
0:00:10.1]} 29... Rc7 {[%clk 0:00:16.6]} 30. Ng5 {[%clk 0:00:09.9]} 30... Rc8
{[%clk 0:00:15.4]} 31. Nf3 {[%clk 0:00:09.1]} 31... Rce8 {[%clk 0:00:14.9]} 32.
Nxe5 {[%clk 0:00:09.2]} 32... Nxe5 {[%clk 0:00:15.8]} 33. Bc2 {[%clk 0:00:09.5]}
33... Nbd7 {[%clk 0:00:16.2]} 34. Qg5 {[%clk 0:00:09.8]} 34... Kh8 {[%clk
0:00:13.6]} 35. g4 {[%clk 0:00:10.1]} 35... Kh7 {[%clk 0:00:12.3]} 36. gxh5
{[%clk 0:00:10.3]} 36... Qh6 {[%clk 0:00:13]} 37. Qxh6+ {[%clk 0:00:10.5]} 37...
Kxh6 {[%clk 0:00:12.8]} 38. hxg6 {[%clk 0:00:11.1]} 38... Nxg6 {[%clk
0:00:13.5]} 39. Bxg6 {[%clk 0:00:11.6]} 39... Kxg6 {[%clk 0:00:14.4]} 40. Rg2+
{[%clk 0:00:12.1]} 40... Kh6 {[%clk 0:00:14.2]} 41. Rf4 {[%clk 0:00:09.1]} 41...
Kh5 {[%clk 0:00:10.8]} 42. Rg7 {[%clk 0:00:09.2]} 42... Ne5 {[%clk 0:00:10.6]}
43. Rf5+ {[%clk 0:00:07.8]} 43... Kh6 {[%clk 0:00:11]} 44. Rf4 {[%clk
0:00:08.2]} 44... Kh5 {[%clk 0:00:11.3]} 45. Rf5+ {[%clk 0:00:08.1]} 45... Kh6
{[%clk 0:00:11.7]} 46. Rxe5 {[%clk 0:00:05]} 46... Rxe5 {[%clk 0:00:11.5]} 47.
Rxf7 {[%clk 0:00:05.8]} 47... Rf5 {[%clk 0:00:12.2]} 48. Rf8 {[%clk 0:00:05.3]}
48... Kg6 {[%clk 0:00:11.8]} 49. f7 {[%clk 0:00:05.5]} 49... Kg7 {[%clk
0:00:12.4]} 50. Rd8 {[%clk 0:00:04.6]} 50... Kxf7 {[%clk 0:00:12.5]} 51. Rxd6
{[%clk 0:00:05]} 51... Rf3 {[%clk 0:00:13.3]} 52. Rc6 {[%clk 0:00:04.8]} 52...
Rxb3 {[%clk 0:00:13.6]} 53. Rxc5 {[%clk 0:00:05.4]} 53... Rc3 {[%clk 0:00:13.5]}
54. Rxa5 {[%clk 0:00:03.8]} 54... Rxc4 {[%clk 0:00:13.9]} 55. Rb5 {[%clk
0:00:04.5]} 55... Rd4 {[%clk 0:00:14]} 56. a5 {[%clk 0:00:04.3]} 56... Rd3
{[%clk 0:00:14.1]} 57. Kg2 {[%clk 0:00:03.2]} 57... Ra3 {[%clk 0:00:13.6]} 58.
a6 {[%clk 0:00:03.4]} 58... b3 {[%clk 0:00:13.5]} 59. a7 {[%clk 0:00:03.5]}
59... Ra2+ {[%clk 0:00:14.4]} 60. Kg3 {[%clk 0:00:03.5]} 60... b2 {[%clk
0:00:14.6]} 61. Rxb2 {[%clk 0:00:04.1]} 61... Rxa7 {[%clk 0:00:15.3]} 62. Rb6
{[%clk 0:00:04.3]} 62... Ra3+ {[%clk 0:00:15.7]} 63. Kg4 {[%clk 0:00:04.7]}
63... Ra4+ {[%clk 0:00:16.6]} 64. Kg5 {[%clk 0:00:05.3]} 64... Ra3 {[%clk
0:00:17.5]} 65. h4 {[%clk 0:00:05.4]} 65... Rg3+ {[%clk 0:00:17.2]} 66. Kf4
{[%clk 0:00:05.5]} 66... Rg1 {[%clk 0:00:18.1]} 67. d6 {[%clk 0:00:05.7]} 67...
Ke6 {[%clk 0:00:18.1]} 68. h5 {[%clk 0:00:06.4]} 68... Rg8 {[%clk 0:00:16.9]}
69. Ra6 {[%clk 0:00:04.9]} 69... Rg1 {[%clk 0:00:16.9]} 70. h6 {[%clk
0:00:03.7]} 70... Rg2 {[%clk 0:00:14.8]} 71. h7 {[%clk 0:00:02.6]} 71... Rh2
{[%clk 0:00:15.2]} 72. Ra7 {[%clk 0:00:02.4]} 72... Rh5 {[%clk 0:00:13.1]} 73.
Kg4 {[%clk 0:00:02.1]} 73... Rh1 {[%clk 0:00:12.8]} 74. Kg5 {[%clk 0:00:02.8]}
74... Rg1+ {[%clk 0:00:12.7]} 75. Kh6 {[%clk 0:00:03.4]} 75... Rh1+ {[%clk
0:00:09]} 76. Kg7 {[%clk 0:00:03.9]} 76... Rg1+ {[%clk 0:00:09.6]} 77. Kh8
{[%clk 0:00:04.5]} 77... Kxd6 {[%clk 0:00:08.8]} 78. Rg7 {[%clk 0:00:05.1]}
78... Ra1 {[%clk 0:00:08.7]} 79. Rf7 {[%clk 0:00:04.8]} 79... Ke6 {[%clk
0:00:08.5]} 80. Rf8 {[%clk 0:00:04.4]} 80... Ke7 {[%clk 0:00:08.3]} 81. Rf4
{[%clk 0:00:04.3]} 81... Rg1 {[%clk 0:00:08]} 82. Rf5 {[%clk 0:00:03.5]} 82...
Ke8 {[%clk 0:00:08.3]} 83. Rf4 {[%clk 0:00:03.4]} 83... Ke7 {[%clk 0:00:08.8]}
84. Rf3 {[%clk 0:00:03.6]} 84... Ke8 {[%clk 0:00:09.2]} 85. Re3+ {[%clk
0:00:04]} 85... Kf8 {[%clk 0:00:09.7]} 86. Rf3+ {[%clk 0:00:04.8]} 86... Ke8
{[%clk 0:00:10.2]} 87. Rf2 {[%clk 0:00:05.7]} 87... Ke7 {[%clk 0:00:10.4]} 88.
Ra2 {[%clk 0:00:05.7]} 88... Kf8 {[%clk 0:00:10]} 89. Ra8+ {[%clk 0:00:06]}
89... Kf7 {[%clk 0:00:10.2]} 90. Ra7+ {[%clk 0:00:06.7]} 90... Kf8 {[%clk
0:00:10.8]} 91. Rb7 {[%clk 0:00:07.5]} 91... Rf1 {[%clk 0:00:10.7]} 92. Rb8+
{[%clk 0:00:07.5]} 92... Kf7 {[%clk 0:00:10.9]} 93. Rg8 {[%clk 0:00:08.1]} 93...
Rf2 {[%clk 0:00:10.7]} 94. Rg7+ {[%clk 0:00:08.3]} 94... Kf8 {[%clk 0:00:11.2]}
95. Rg8+ {[%clk 0:00:08.2]} 95... Kf7 {[%clk 0:00:11.8]} 96. Rb8 {[%clk
0:00:09]} 96... Rf1 {[%clk 0:00:12.2]} 97. Rb7+ {[%clk 0:00:09.4]} 97... Kf8
{[%clk 0:00:12.3]} 98. Rb8+ {[%clk 0:00:09.7]} 98... Kf7 {[%clk 0:00:12.9]}
1/2-1/2

[Event "Early-Titled-Tuesday-Blitz-July-09-2024"]
[Site "Chess.com"]
[Date "2024.07.09"]
[Round "4"]
[White "Resignify"]
[Black "klercaku"]
[Result "1/2-1/2"]
[WhiteElo "2272"]
[BlackElo "2385"]
[TimeControl "180+1"]
[EndTime "8:42:36 PDT"]
[Termination "Game drawn by 50-move rule"]

1. e4 {[%clk 0:03:00.9]} 1... e5 {[%clk 0:03:00.3]} 2. Nf3 {[%clk 0:03:00.3]}
2... Nc6 {[%clk 0:03:00.1]} 3. Bb5 {[%clk 0:03:00.1]} 3... a6 {[%clk 0:03:00.1]}
4. Ba4 {[%clk 0:02:59.9]} 4... Nf6 {[%clk 0:03:00.3]} 5. O-O {[%clk 0:02:57.8]}
5... b5 {[%clk 0:03:00.8]} 6. Bb3 {[%clk 0:02:57.7]} 6... Be7 {[%clk 0:03:01.4]}
7. Re1 {[%clk 0:02:52.9]} 7... O-O {[%clk 0:03:01.5]} 8. c3 {[%clk 0:02:52.9]}
8... d6 {[%clk 0:03:00.8]} 9. d3 {[%clk 0:02:49.1]} 9... Na5 {[%clk 0:03:00.7]}
10. Bc2 {[%clk 0:02:48.8]} 10... c5 {[%clk 0:03:00.3]} 11. Nbd2 {[%clk
0:02:48.9]} 11... Qc7 {[%clk 0:02:59.7]} 12. Nf1 {[%clk 0:02:48.6]} 12... h6
{[%clk 0:02:56]} 13. h3 {[%clk 0:02:40.5]} 13... Re8 {[%clk 0:02:54.5]} 14. g4
{[%clk 0:02:35.2]} 14... c4 {[%clk 0:02:14.5]} 15. d4 {[%clk 0:02:27.8]} 15...
Nc6 {[%clk 0:01:51.4]} 16. Ng3 {[%clk 0:02:18]} 16... Nb8 {[%clk 0:01:44.3]} 17.
Kg2 {[%clk 0:02:06.5]} 17... Nbd7 {[%clk 0:01:38.7]} 18. Be3 {[%clk 0:01:42.3]}
18... Nf8 {[%clk 0:01:31.8]} 19. Qd2 {[%clk 0:01:34.6]} 19... Ng6 {[%clk
0:01:29.8]} 20. b3 {[%clk 0:01:26.9]} 20... Bb7 {[%clk 0:01:22.7]} 21. bxc4
{[%clk 0:01:04.7]} 21... bxc4 {[%clk 0:01:16.6]} 22. g5 {[%clk 0:00:51.5]} 22...
hxg5 {[%clk 0:01:08.6]} 23. Bxg5 {[%clk 0:00:52.4]} 23... Bd8 {[%clk 0:00:47.8]}
24. d5 {[%clk 0:00:44.2]} 24... Nd7 {[%clk 0:00:45.2]} 25. Be3 {[%clk
0:00:39.4]} 25... Nc5 {[%clk 0:00:45.2]} 26. Nf5 {[%clk 0:00:39.1]} 26... Bc8
{[%clk 0:00:35.1]} 27. Rh1 {[%clk 0:00:31.7]} 27... Rb8 {[%clk 0:00:28.2]} 28.
Rab1 {[%clk 0:00:30.6]} 28... Rxb1 {[%clk 0:00:27.8]} 29. Bxb1 {[%clk
0:00:30.9]} 29... Bd7 {[%clk 0:00:14.1]} 30. h4 {[%clk 0:00:31.1]} 30... Ne7
{[%clk 0:00:12]} 31. Nxe7+ {[%clk 0:00:30.5]} 31... Bxe7 {[%clk 0:00:12.9]} 32.
Ng5 {[%clk 0:00:24.3]} 32... Bg4 {[%clk 0:00:10.6]} 33. Bc2 {[%clk 0:00:19.9]}
33... Bh5 {[%clk 0:00:10.7]} 34. Rb1 {[%clk 0:00:13.4]} 34... Bxg5 {[%clk
0:00:09.7]} 35. hxg5 {[%clk 0:00:10]} 35... Bg6 {[%clk 0:00:08.2]} 36. f3 {[%clk
0:00:10.5]} 36... Rb8 {[%clk 0:00:07.2]} 37. Bxc5 {[%clk 0:00:08.9]} 37... Rxb1
{[%clk 0:00:06.3]} 38. Bxd6 {[%clk 0:00:06.3]} 38... Qxd6 {[%clk 0:00:02.8]} 39.
Bxb1 {[%clk 0:00:06.5]} 39... Bh5 {[%clk 0:00:02.2]} 40. Bc2 {[%clk 0:00:03.6]}
40... f6 {[%clk 0:00:02.6]} 41. gxf6 {[%clk 0:00:02.7]} 41... gxf6 {[%clk
0:00:03.2]} 42. Bd1 {[%clk 0:00:03.6]} 42... Kf7 {[%clk 0:00:03.3]} 43. Qh6
{[%clk 0:00:03.2]} 43... Bg6 {[%clk 0:00:03.2]} 44. Qh3 {[%clk 0:00:02.4]} 44...
Qc7 {[%clk 0:00:02.1]} 45. Qe6+ {[%clk 0:00:01.7]} 45... Kg7 {[%clk 0:00:02.5]}
46. Be2 {[%clk 0:00:02.5]} 46... Bf7 {[%clk 0:00:02.6]} 47. Qg4+ {[%clk
0:00:02.1]} 47... Kf8 {[%clk 0:00:03.1]} 48. Qh4 {[%clk 0:00:02]} 48... Ke7
{[%clk 0:00:03.4]} 49. Qh3 {[%clk 0:00:02.5]} 49... Qd6 {[%clk 0:00:03.4]} 50.
Qg3 {[%clk 0:00:03]} 50... Qa3 {[%clk 0:00:03.2]} 51. Qf2 {[%clk 0:00:02.5]}
51... Qxc3 {[%clk 0:00:03.1]} 52. Qa7+ {[%clk 0:00:02.1]} 52... Kf8 {[%clk
0:00:03.7]} 53. Qc5+ {[%clk 0:00:01.7]} 53... Kg7 {[%clk 0:00:03.6]} 54. Qxc4
{[%clk 0:00:02.4]} 54... Qd2 {[%clk 0:00:03.4]} 55. Qxa6 {[%clk 0:00:02.4]}
55... Bh5 {[%clk 0:00:01.9]} 56. a4 {[%clk 0:00:02]} 56... Be8 {[%clk
0:00:01.5]} 57. Qd3 {[%clk 0:00:02.9]} 57... Qa5 {[%clk 0:00:01.1]} 58. Qc2
{[%clk 0:00:02.6]} 58... Qxa4 {[%clk 0:00:01.3]} 59. Qxa4 {[%clk 0:00:02.6]}
59... Bxa4 {[%clk 0:00:02.2]} 60. Kg3 {[%clk 0:00:02.8]} 60... Bd7 {[%clk
0:00:02.6]} 61. Bf1 {[%clk 0:00:02.5]} 61... f5 {[%clk 0:00:02.4]} 62. Bh3
{[%clk 0:00:03.4]} 62... f4+ {[%clk 0:00:01.9]} 63. Kg2 {[%clk 0:00:03.9]} 63...
Be8 {[%clk 0:00:02]} 64. Be6 {[%clk 0:00:03.6]} 64... Kf6 {[%clk 0:00:01.8]} 65.
Kh3 {[%clk 0:00:04.4]} 65... Ke7 {[%clk 0:00:02.3]} 66. Kg4 {[%clk 0:00:04.8]}
66... Kd6 {[%clk 0:00:03]} 67. Kf5 {[%clk 0:00:05.2]} 67... Ba4 {[%clk
0:00:03.6]} 68. Kf6 {[%clk 0:00:03.9]} 68... Bd1 {[%clk 0:00:04]} 69. Bg4 {[%clk
0:00:04.7]} 69... Be2 {[%clk 0:00:04.4]} 70. Kg5 {[%clk 0:00:04.8]} 70... Bd3
{[%clk 0:00:04.6]} 71. Kh4 {[%clk 0:00:05.1]} 71... Bc4 {[%clk 0:00:04.6]} 72.
Kh3 {[%clk 0:00:06]} 72... Bd3 {[%clk 0:00:04.7]} 73. Kg2 {[%clk 0:00:06.4]}
73... Bc2 {[%clk 0:00:05]} 74. Kf2 {[%clk 0:00:06.8]} 74... Bb3 {[%clk
0:00:05.7]} 75. Ke2 {[%clk 0:00:07.2]} 75... Ba4 {[%clk 0:00:06.4]} 76. Kd2
{[%clk 0:00:07.5]} 76... Bb5 {[%clk 0:00:06.9]} 77. Bh3 {[%clk 0:00:07.5]} 77...
Ba4 {[%clk 0:00:06.5]} 78. Ke1 {[%clk 0:00:07.4]} 78... Bb5 {[%clk 0:00:06.3]}
79. Bf1 {[%clk 0:00:08.3]} 79... Ba4 {[%clk 0:00:05.8]} 80. Be2 {[%clk
0:00:08.6]} 80... Bd7 {[%clk 0:00:05.7]} 81. Kd2 {[%clk 0:00:09]} 81... Bh3
{[%clk 0:00:06.2]} 82. Ke1 {[%clk 0:00:08.5]} 82... Bg2 {[%clk 0:00:06.4]} 83.
Kf2 {[%clk 0:00:08.7]} 83... Bh3 {[%clk 0:00:06.7]} 84. Bf1 {[%clk 0:00:07.5]}
84... Bc8 {[%clk 0:00:06.9]} 85. Kg2 {[%clk 0:00:05.9]} 85... Bd7 {[%clk
0:00:06.7]} 86. Be2 {[%clk 0:00:06.1]} 86... Bc8 {[%clk 0:00:07]} 87. Bb5 {[%clk
0:00:05.2]} 87... Bb7 {[%clk 0:00:07.2]} 88. Kf2 {[%clk 0:00:04.2]} 88... Bc8
{[%clk 0:00:07.6]} 89. Bc6 {[%clk 0:00:03.5]} 89... Ba6 {[%clk 0:00:07.8]} 90.
Ba4 {[%clk 0:00:03.7]} 90... Bc8 {[%clk 0:00:08.2]} 91. Bb3 {[%clk 0:00:03.8]}
91... Ba6 {[%clk 0:00:08.7]} 92. Bc2 {[%clk 0:00:03.9]} 92... Bc8 {[%clk
0:00:09.3]} 93. Bd3 {[%clk 0:00:04.5]} 93... Bd7 {[%clk 0:00:09.7]} 94. Bf1
{[%clk 0:00:04.7]} 94... Bc8 {[%clk 0:00:10.3]} 95. Kg2 {[%clk 0:00:04.8]} 95...
Bd7 {[%clk 0:00:10.6]} 96. Kh2 {[%clk 0:00:05.3]} 96... Bc8 {[%clk 0:00:11]} 97.
Be2 {[%clk 0:00:05.6]} 97... Bd7 {[%clk 0:00:11.4]} 98. Ba6 {[%clk 0:00:04.7]}
98... Be8 {[%clk 0:00:11.7]} 99. Bf1 {[%clk 0:00:04.2]} 99... Bd7 {[%clk
0:00:12.3]} 100. Bh3 {[%clk 0:00:04.2]} 100... Be8 {[%clk 0:00:12.9]} 101. Be6
{[%clk 0:00:04]} 101... Bb5 {[%clk 0:00:13.3]} 102. Kh3 {[%clk 0:00:04.3]}
102... Ba6 {[%clk 0:00:13.7]} 103. Kh4 {[%clk 0:00:03.5]} 103... Be2 {[%clk
0:00:14]} 104. Bg4 {[%clk 0:00:03.5]} 104... Ba6 {[%clk 0:00:14.4]} 105. Kg5
{[%clk 0:00:04.4]} 105... Bb7 {[%clk 0:00:14.8]} 106. Kf6 {[%clk 0:00:04.9]}
106... Ba6 {[%clk 0:00:15.4]} 107. Kf7 {[%clk 0:00:05.3]} 107... Bb5 {[%clk
0:00:15.9]} 108. Kf6 {[%clk 0:00:05.8]} 108... Bc4 {[%clk 0:00:16.2]} 109. Kg5
{[%clk 0:00:05.9]} 109... Bd3 {[%clk 0:00:16.8]} 110. Kh4 {[%clk 0:00:06.2]}
110... Ba6 {[%clk 0:00:17.4]} 111. Kh3 {[%clk 0:00:06.6]} 111... Bb7 {[%clk
0:00:18]} 112. Kh2 {[%clk 0:00:07.1]} 112... Ba6 {[%clk 0:00:18.6]} 1/2-1/2